fUSD/lending_fUSD_20240421
["ID","MTS","AMOUNT","RATE_DAILY","PERIOD"]
[323136328,1713705040509,-200.0,0.00016687,2]
[323136329,1713705040518,-489.98,0.00016699,2]
[323136330,1713705040527,-35.55102874,0.00016699,2]
[323136331,1713705040539,-464.44897126,0.00016699,2]
[323136332,1713705040549,-354.04834223,0.00016699,2]
[323136333,1713705040567,-241.84165777,0.00016699,2]
[323136334,1713705040577,-131.72834223,0.00016699,2]
[323136335,1713705041113,-294.08906027,0.00016438,2]
[323136336,1713705041145,-7337.92093973,0.00016438,2]
[323136337,1713705041154,-368.27165777,0.00016699,2]
[323136338,1713705041163,-589.2,0.00016699,2]
[323136339,1713705041172,-500.0,0.00016699,2]
[323136340,1713705041182,-500.0,0.00016699,2]
[323136341,1713705041191,-500.0,0.00016699,2]
[323136342,1713705041200,-1003.81,0.00016699,2]
[323136343,1713705041210,-500.0,0.00016699,2]
[323136344,1713705041219,-1495.78,0.00016699,2]
[323136345,1713705041228,-500.0,0.00016699,2]
[323136346,1713705041238,-500.0,0.00016699,2]
[323136347,1713705041247,-500.0,0.00016699,2]
[323136348,1713705041256,-929.65,0.00016699,2]
[323136349,1713705041266,-500.0,0.00016699,2]
[323136350,1713705041275,-708.96,0.00016699,2]
[323136351,1713705041284,-502.9,0.00016699,2]
[323136352,1713705041293,-515.37,0.00016699,2]
[323136353,1713705041302,-755.33,0.00016699,2]
[323136354,1713705041315,-500.0,0.000167,2]
[323136355,1713705041330,-500.0,0.00016711,2]
[323136356,1713705041343,-500.0,0.00016712,2]
[323136357,1713705041356,-500.0,0.00016712,2]
[323136358,1713705041366,-500.0,0.00016712,2]
[323136359,1713705041379,-500.0,0.00016712,2]
[323136360,1713705041392,-500.0,0.00016712,2]
[323136361,1713705041405,-611.26,0.00016712,2]
[323136362,1713705041417,-500.0,0.00016712,2]
[323136363,1713705041430,-500.0,0.00016712,2]
[323136364,1713705041441,-500.0,0.00016712,2]
[323136365,1713705041451,-574.62,0.00016712,2]
[323136366,1713705041464,-664.59,0.00016712,2]
[323136367,1713705041476,-500.0,0.00016712,2]
[323136368,1713705041487,-527.21,0.00016712,2]
[323136369,1713705041501,-500.0,0.00016712,2]
[323136370,1713705041514,-500.0,0.00016712,2]
[323136371,1713705041525,-664.34,0.00016712,2]
[323136372,1713705041535,-500.0,0.00016712,2]
[323136373,1713705041548,-569.61920907,0.00016712,2]
[323136374,1713705041560,-612.9,0.00016712,2]
[323136375,1713705041574,-667.97,0.00016712,2]
[323136376,1713705041587,-525.8,0.00016712,2]
[323136377,1713705041600,-559.65,0.00016712,2]
[323136378,1713705041611,-577.16,0.00016712,2]
[323136379,1713705041623,-164.75,0.00016712,2]
[323136380,1713705041636,-500.0,0.00016712,2]
[323136381,1713705041649,-504.73,0.00016712,2]
[323136382,1713705041662,-500.0,0.00016712,2]
[323136383,1713705041675,-500.0,0.00016712,2]
[323136384,1713705041688,-500.0,0.00016712,2]
[323136385,1713705041698,-951.02,0.00016712,2]
[323136386,1713705041707,-293.81003314,0.00016712,2]
[323136387,1713705041718,-500.0,0.00016712,2]
[323136388,1713705041730,-399.91527713,0.00016712,2]
[323136389,1713705041742,-240.61979609,0.00016712,2]
[323136390,1713705041753,-1041.07,0.00016712,2]
[323136391,1713705041767,-558.48,0.00016712,2]
[323136392,1713705041779,-880.82,0.00016712,2]
[323136393,1713705041789,-500.0,0.00016712,2]
[323136394,1713705041799,-500.0,0.00016712,2]
[323136395,1713705041811,-500.0,0.00016712,2]
[323136396,1713705041822,-635.91,0.00016712,2]
[323136397,1713705041835,-346.14,0.00016712,2]
[323136398,1713705041846,-410.58,0.00016712,2]
[323136399,1713705041858,-298.85109511,0.00016712,2]
[323136400,1713705041870,-500.0,0.00016712,2]
[323136401,1713705041881,-711.55,0.00016712,2]
[323136402,1713705041892,-590.64,0.00016712,2]
[323136403,1713705041903,-500.0,0.00016712,2]
[323136404,1713705041914,-154.5,0.00016712,2]
[323136405,1713705041925,-500.0,0.00016712,2]
[323136406,1713705041937,-500.0,0.00016712,2]
[323136407,1713705041948,-1098.43,0.00016712,2]
[323136408,1713705041959,-500.0,0.00016712,2]
[323136409,1713705041970,-1512.46,0.00016712,2]
[323136410,1713705041982,-668.7,0.00016712,2]
[323136411,1713705041993,-339.28,0.00016712,2]
[323136412,1713705042004,-500.0,0.00016712,2]
[323136413,1713705042015,-500.0,0.00016712,2]
[323136414,1713705042027,-508.56,0.00016712,2]
[323136415,1713705042038,-598.66,0.00016712,2]
[323136416,1713705042050,-500.0,0.00016712,2]
[323136417,1713705042062,-500.0,0.00016712,2]
[323136418,1713705042074,-500.0,0.00016712,2]
[323136419,1713705042085,-500.0,0.00016712,2]
[323136420,1713705042097,-433.43,0.00016712,2]
[323136421,1713705042108,-500.0,0.00016712,2]
[323136422,1713705042119,-1411.47,0.00016712,2]
[323136423,1713705042130,-863.35,0.00016712,2]
[323136424,1713705042141,-176.97,0.00016712,2]
[323136425,1713705042153,-900.52,0.00016712,2]
[323136426,1713705042164,-286.5,0.00016712,2]
[323136427,1713705042176,-500.0,0.00016712,2]
[323136428,1713705042187,-1421.63,0.00016712,2]
[323136429,1713705042200,-500.0,0.00016712,2]
[323136430,1713705042211,-714.01,0.00016712,2]
[323136431,1713705042222,-540.27,0.00016712,2]
[323136432,1713705042234,-630.2,0.00016712,2]
[323136433,1713705042246,-458.85,0.00016712,2]
[323136434,1713705042257,-500.0,0.00016712,2]
[323136435,1713705042269,-735.86,0.00016712,2]
[323136436,1713705042281,-500.0,0.00016712,2]
[323136437,1713705042292,-968.12,0.00016712,2]
[323136438,1713705042304,-472.63,0.00016712,2]
[323136439,1713705042315,-534.4,0.00016712,2]
[323136440,1713705042327,-357.24,0.00016712,2]
[323136441,1713705042339,-500.0,0.00016712,2]
[323136442,1713705042350,-151.46,0.00016712,2]
[323136443,1713705042362,-500.0,0.00016712,2]
[323136444,1713705042374,-627.95,0.00016712,2]
[323136445,1713705042386,-500.0,0.00016712,2]
[323136446,1713705042397,-719.49,0.00016712,2]
[323136447,1713705042409,-500.0,0.00016712,2]
[323136448,1713705042421,-500.0,0.00016712,2]
[323136449,1713705042432,-797.25,0.00016712,2]
[323136450,1713705042443,-308.64,0.00016712,2]
[323136451,1713705042454,-677.52,0.00016712,2]
[323136452,1713705042466,-546.7,0.00016712,2]
[323136453,1713705042477,-500.0,0.00016712,2]
[323136454,1713705042488,-500.0,0.00016712,2]
[323136455,1713705042501,-500.0,0.00016712,2]
[323136456,1713705042514,-719.49,0.00016712,2]
[323136457,1713705042525,-500.0,0.00016712,2]
[323136458,1713705042537,-803.51,0.00016712,2]
[323136459,1713705042549,-1118.71,0.00016712,2]
[323136460,1713705042562,-514.51,0.00016712,2]
[323136461,1713705042575,-505.43,0.00016712,2]
[323136462,1713705042586,-772.69,0.00016712,2]
[323136463,1713705042597,-963.51,0.00016712,2]
[323136464,1713705042609,-567.29,0.00016712,2]
[323136465,1713705042620,-500.0,0.00016712,2]
[323136466,1713705042632,-754.4,0.00016712,2]
[323136468,1713705042643,-500.0,0.00016712,2]
[323136470,1713705042655,-580.62,0.00016712,2]
[323136471,1713705042667,-966.87,0.00016712,2]
[323136472,1713705042678,-545.09,0.00016712,2]
[323136473,1713705042690,-517.61,0.00016712,2]
[323136474,1713705042702,-500.0,0.00016712,2]
[323136475,1713705042714,-686.65,0.00016712,2]
[323136476,1713705042725,-181.34,0.00016712,2]
[323136477,1713705042736,-500.0,0.00016712,2]
[323136478,1713705042747,-500.0,0.00016712,2]
[323136479,1713705042759,-560.26,0.00016712,2]
[323136481,1713705042770,-650.83,0.00016712,2]
[323136483,1713705042781,-500.0,0.00016712,2]
[323136485,1713705042793,-603.02,0.00016712,2]
[323136487,1713705042806,-845.51,0.00016712,2]
[323136491,1713705042816,-239.07825592,0.00016712,2]
[323136494,1713705042828,-749.09,0.00016712,2]
[323136497,1713705042839,-500.0,0.00016712,2]
[323136501,1713705042852,-500.0,0.00016712,2]
[323136503,1713705042863,-500.0,0.00016712,2]
[323136504,1713705042875,-767.95,0.00016712,2]
[323136505,1713705042889,-818.92,0.00016712,2]
[323136506,1713705042902,-500.0,0.00016712,2]
[323136507,1713705042916,-1003.55,0.00016712,2]
[323136508,1713705042928,-500.0,0.00016712,2]
[323136509,1713705042940,-628.37,0.00016712,2]
[323136510,1713705042952,-765.23,0.00016712,2]
[323136511,1713705042962,-547.07,0.00016712,2]
[323136512,1713705042972,-528.89,0.00016712,2]
[323136513,1713705042981,-150.0,0.00016712,2]
[323136514,1713705042991,-500.0,0.00016712,2]
[323136515,1713705043001,-536.94,0.00016712,2]
[323136516,1713705043010,-775.13,0.00016712,2]
[323136517,1713705043021,-570.14,0.00016712,2]
[323136518,1713705043031,-1045.49,0.00016712,2]
[323136519,1713705043043,-500.0,0.00016712,2]
[323136520,1713705043054,-1199.84,0.00016712,2]
[323136521,1713705043064,-780.93,0.00016712,2]
[323136522,1713705043075,-500.0,0.00016712,2]
[323136523,1713705043085,-693.71,0.00016712,2]
[323136524,1713705043095,-500.0,0.00016712,2]
[323136525,1713705043106,-896.94,0.00016712,2]
[323136526,1713705043116,-527.02,0.00016712,2]
[323136527,1713705043127,-500.0,0.00016712,2]
[323136528,1713705043136,-500.0,0.00016712,2]
[323136529,1713705043451,-500.0,0.00016712,2]
[323136530,1713705043476,-500.0,0.00016712,2]
[323136531,1713705043488,-500.0,0.00016712,2]
[323136532,1713705043499,-500.0,0.00016712,2]
[323136533,1713705043510,-500.79,0.00016712,2]
[323136534,1713705043520,-558.05,0.00016712,2]
[323136535,1713705043530,-726.84,0.00016712,2]
[323136536,1713705043540,-613.8,0.00016712,2]
[323136537,1713705043550,-832.44,0.00016712,2]
[323136538,1713705043563,-164.73704397,0.00016712,2]
[323136539,1713705043572,-611.32,0.00016712,2]
[323136540,1713705043582,-2023.58,0.00016712,2]
[323136541,1713705043591,-500.0,0.00016712,2]
[323136542,1713705043600,-500.0,0.00016712,2]
[323136543,1713705043609,-625.96,0.00016712,2]
[323136544,1713705043618,-1130.7,0.00016712,2]
[323136545,1713705043627,-544.6,0.00016712,2]
[323136546,1713705043636,-500.0,0.00016712,2]
[323136547,1713705043645,-926.3,0.00016712,2]
[323136548,1713705043654,-624.64,0.00016712,2]
[323136549,1713705043664,-1136.88,0.00016712,2]
[323136550,1713705043673,-527.1,0.00016712,2]
[323136551,1713705043683,-1333.34,0.00016712,2]
[323136552,1713705043691,-1014.94,0.00016712,2]
[323136553,1713705043701,-758.87,0.00016712,2]
[323136554,1713705043710,-173.51,0.00016712,2]
[323136555,1713705043718,-961.57,0.00016712,2]
[323136556,1713705043727,-2631.45,0.00016712,2]
[323136557,1713705043737,-500.0,0.00016712,2]
[323136558,1713705043745,-586.37,0.00016712,2]
[323136559,1713705043755,-980.29,0.00016712,2]
[323136560,1713705043764,-500.0,0.00016712,2]
[323136561,1713705043773,-500.0,0.00016712,2]
[323136562,1713705043783,-1602.27,0.00016712,2]
[323136563,1713705043791,-500.0,0.00016712,2]
[323136564,1713705043800,-1025.22,0.00016712,2]
[323136565,1713705043811,-500.0,0.00016712,2]
[323136566,1713705043820,-569.8,0.00016712,2]
[323136567,1713705043829,-500.0,0.00016712,2]
[323136568,1713705043837,-2302.01,0.00016712,2]
[323136569,1713705043847,-500.0,0.00016712,2]
[323136570,1713705043856,-873.87,0.00016712,2]
[323136571,1713705043865,-500.0,0.00016712,2]
[323136572,1713705043874,-500.0,0.00016712,2]
[323136573,1713705043884,-850.11,0.00016712,2]
[323136574,1713705043893,-1132.3,0.00016712,2]
[323136575,1713705043901,-500.0,0.00016712,2]
[323136576,1713705043911,-624.6,0.00016712,2]
[323136577,1713705043920,-873.03,0.00016712,2]
[323136578,1713705043929,-896.73,0.00016712,2]
[323136579,1713705043939,-1308.86,0.00016712,2]
[323136580,1713705043948,-595.42,0.00016712,2]
[323136581,1713705043957,-500.0,0.00016712,2]
[323136582,1713705043967,-1464.03,0.00016712,2]
[323136583,1713705043978,-596.24,0.00016712,2]
[323136584,1713705043988,-1027.43,0.00016712,2]
[323136585,1713705043999,-756.58,0.00016712,2]
[323136586,1713705044008,-8693.76,0.00016712,2]
[323136587,1713705044017,-701.84,0.00016712,2]
[323136588,1713705044027,-500.0,0.00016712,2]
[323136589,1713705044037,-1361.22,0.00016712,2]
[323136590,1713705044046,-766.51,0.00016712,2]
[323136591,1713705044058,-2482.54,0.00016712,2]
[323136592,1713705044067,-273.44,0.00016712,2]
[323136593,1713705044077,-500.0,0.00016712,2]
[323136594,1713705044086,-655.08,0.00016712,2]
[323136595,1713705044095,-500.0,0.00016712,2]
[323136596,1713705044104,-500.36,0.00016712,2]
[323136597,1713705044113,-585.09,0.00016712,2]
[323136598,1713705044122,-585.11,0.00016712,2]
[323136599,1713705044131,-1176.96,0.00016712,2]
[323136600,1713705044140,-1194.25,0.00016712,2]
[323136601,1713705044149,-790.85,0.00016712,2]
[323136602,1713705044158,-743.84,0.00016712,2]
[323136603,1713705044168,-500.0,0.00016712,2]
[323136604,1713705044177,-1055.76,0.00016712,2]
[323136605,1713705044187,-500.0,0.00016712,2]
[323136606,1713705044196,-718.89,0.00016712,2]
[323136607,1713705044205,-500.0,0.00016712,2]
[323136608,1713705044214,-661.36,0.00016712,2]
[323136609,1713705044223,-1514.19,0.00016712,2]
[323136610,1713705044233,-553.02,0.00016712,2]
[323136611,1713705044242,-500.0,0.00016712,2]
[323136612,1713705044252,-562.79,0.00016712,2]
[323136613,1713705044261,-500.0,0.00016712,2]
[323136614,1713705044271,-1025.71,0.00016712,2]
[323136615,1713705044280,-774.64,0.00016712,2]
[323136616,1713705044289,-3138.74,0.00016712,2]
[323136617,1713705044298,-548.46,0.00016712,2]
[323136618,1713705044310,-500.0,0.00016712,2]
[323136619,1713705044320,-1204.31,0.00016712,2]
[323136620,1713705044329,-1049.26,0.00016712,2]
[323136621,1713705044338,-1049.23,0.00016712,2]
[323136622,1713705044347,-1513.92,0.00016712,2]
[323136623,1713705044356,-1428.05,0.00016712,2]
[323136624,1713705044365,-2273.6,0.00016712,2]
[323136625,1713705044375,-635.58,0.00016712,2]
[323136626,1713705044384,-613.91,0.00016712,2]
[323136627,1713705044393,-500.0,0.00016712,2]
[323136628,1713705044403,-1255.21,0.00016712,2]
[323136629,1713705044412,-1226.46,0.00016712,2]
[323136630,1713705044421,-503.24,0.00016712,2]
[323136631,1713705044430,-500.0,0.00016712,2]
[323136632,1713705044439,-652.76,0.00016712,2]
[323136633,1713705044448,-500.0,0.00016712,2]
[323136634,1713705044457,-694.94,0.00016712,2]
[323136635,1713705044467,-500.0,0.00016712,2]
[323136636,1713705044475,-1545.08,0.00016712,2]
[323136637,1713705044484,-1222.7,0.00016712,2]
[323136638,1713705044493,-967.01,0.00016712,2]
[323136639,1713705044507,-500.0,0.00016712,2]
[323136640,1713705044515,-500.0,0.00016712,2]
[323136641,1713705044524,-1317.79,0.00016712,2]
[323136642,1713705044533,-525.19,0.00016712,2]
[323136643,1713705044542,-755.07,0.00016712,2]
[323136644,1713705044551,-1994.66,0.00016712,2]
[323136645,1713705044561,-1387.65,0.00016712,2]
[323136646,1713705044570,-1291.85,0.00016712,2]
[323136647,1713705044580,-891.08,0.00016712,2]
[323136648,1713705044589,-461.92,0.00016712,2]
[323136649,1713705044599,-725.11,0.00016712,2]
[323136650,1713705044608,-500.0,0.00016712,2]
[323136651,1713705044617,-500.0,0.00016712,2]
[323136652,1713705044627,-590.41,0.00016712,2]
[323136653,1713705044636,-536.69,0.00016712,2]
[323136654,1713705044645,-500.0,0.00016712,2]
[323136655,1713705044654,-586.3,0.00016712,2]
[323136656,1713705044663,-555.52,0.00016712,2]
[323136657,1713705044672,-2155.78,0.00016712,2]
[323136658,1713705044681,-657.95,0.00016712,2]
[323136659,1713705044691,-1395.48,0.00016712,2]
[323136660,1713705044700,-500.0,0.00016712,2]
[323136661,1713705044709,-500.0,0.00016712,2]
[323136662,1713705044718,-556.91,0.00016712,2]
[323136663,1713705044728,-646.06,0.00016712,2]
[323136664,1713705044737,-648.91,0.00016712,2]
[323136665,1713705044747,-1324.65,0.00016712,2]
[323136666,1713705044756,-1000.0,0.00016712,2]
[323136667,1713705044765,-500.0,0.00016712,2]
[323136668,1713705044774,-1342.36,0.00016712,2]
[323136669,1713705044783,-712.84,0.00016712,2]
[323136670,1713705044792,-500.0,0.00016712,2]
[323136671,1713705044801,-500.0,0.00016712,2]
[323136672,1713705044812,-776.79,0.00016712,2]
[323136673,1713705044821,-752.77,0.00016712,2]
[323136674,1713705044830,-500.0,0.00016712,2]
[323136675,1713705044839,-500.0,0.00016712,2]
[323136676,1713705044849,-500.0,0.00016712,2]
[323136677,1713705044858,-916.59,0.00016712,2]
[323136678,1713705044867,-604.67,0.00016712,2]
[323136679,1713705044876,-1482.0,0.00016712,2]
[323136680,1713705044885,-3954.37,0.00016712,2]
[323136681,1713705044894,-573.04,0.00016712,2]
[323136682,1713705044903,-922.84,0.00016712,2]
[323136683,1713705044912,-7632.01,0.00016712,2]
[323136684,1713705044922,-5056.0,0.00016735,2]
[323136685,1713705044931,-500.0,0.00016799,2]
[323136686,1713705044941,-28194.79991798,0.000168,5]
[323136687,1713705044951,-500.0,0.00016866,2]
[323136688,1713705044960,-200.0,0.00016891,2]
[323136689,1713705044970,-1000.0,0.00016891,2]
[323136690,1713705044979,-500.0,0.00016891,2]
[323136691,1713705044988,-200.0,0.00016891,2]
[323136692,1713705044997,-500.0,0.00016973,2]
[323136693,1713705045007,-595.89,0.00016973,2]
[323136694,1713705045016,-500.0,0.00016973,2]
[323136695,1713705045025,-589.2,0.00016973,2]
[323136696,1713705045034,-500.0,0.00016973,2]
[323136697,1713705045044,-500.0,0.00016973,2]
[323136698,1713705045054,-500.0,0.00016973,2]
[323136699,1713705045064,-1003.81,0.00016973,2]
[323136700,1713705045074,-500.0,0.00016973,2]
[323136701,1713705045083,-1495.78,0.00016973,2]
[323136702,1713705045092,-500.0,0.00016973,2]
[323136703,1713705045102,-500.0,0.00016973,2]
[323136704,1713705045111,-500.0,0.00016973,2]
[323136705,1713705045120,-929.65,0.00016973,2]
[323136706,1713705045130,-500.0,0.00016973,2]
[323136707,1713705045139,-708.96,0.00016973,2]
[323136708,1713705045149,-502.9,0.00016973,2]
[323136709,1713705045158,-515.37,0.00016973,2]
[323136710,1713705045167,-755.33,0.00016973,2]
[323136711,1713705045176,-4330.90690104,0.00016983,2]
[323136712,1713705045185,-157.40461354,0.00016985,2]
[323136713,1713705045195,-155.23543242,0.00016985,2]
[323136714,1713705045205,-500.0,0.00016985,2]
[323136715,1713705045214,-1081.39429608,0.00016985,5]
[323136716,1713705045224,-500.0,0.00016986,2]
[323136717,1713705045233,-500.0,0.00016986,2]
[323136718,1713705045242,-500.0,0.00016986,2]
[323136719,1713705045251,-500.0,0.00016986,2]
[323136720,1713705045260,-500.0,0.00016986,2]
[323136721,1713705045269,-611.26,0.00016986,2]
[323136722,1713705045278,-500.0,0.00016986,2]
[323136723,1713705045287,-500.0,0.00016986,2]
[323136724,1713705045296,-500.0,0.00016986,2]
[323136725,1713705045305,-574.62,0.00016986,2]
[323136726,1713705045314,-664.59,0.00016986,2]
[323136727,1713705045323,-500.0,0.00016986,2]
[323136728,1713705045333,-527.21,0.00016986,2]
[323136729,1713705045342,-500.0,0.00016986,2]
[323136730,1713705045351,-500.0,0.00016986,2]
[323136731,1713705045360,-664.34,0.00016986,2]
[323136732,1713705045369,-282.54,0.00016986,2]
[323136733,1713705045378,-612.9,0.00016986,2]
[323136734,1713705045388,-667.97,0.00016986,2]
[323136735,1713705045397,-525.8,0.00016986,2]
[323136736,1713705045406,-559.65,0.00016986,2]
[323136737,1713705045416,-577.16,0.00016986,2]
[323136738,1713705045425,-500.0,0.00016986,2]
[323136739,1713705045434,-504.73,0.00016986,2]
[323136740,1713705045443,-500.0,0.00016986,2]
[323136741,1713705045452,-238.67,0.00016986,2]
[323136742,1713705045461,-500.0,0.00016986,2]
[323136743,1713705045469,-951.02,0.00016986,2]
[323136744,1713705045478,-500.0,0.00016986,2]
[323136745,1713705045487,-1041.07,0.00016986,2]
[323136746,1713705045500,-880.82,0.00016986,2]
[323136747,1713705045509,-183.19,0.00016986,2]
[323136748,1713705045518,-165.85,0.00016986,2]
[323136749,1713705045527,-500.0,0.00016986,2]
[323136750,1713705045538,-300.12,0.00016986,2]
[323136751,1713705045547,-711.55,0.00016986,2]
[323136752,1713705045557,-500.0,0.00016986,2]
[323136753,1713705045566,-570.32,0.00016986,2]
[323136754,1713705045575,-412.85701234,0.00016986,2]
[323136755,1713705045586,-1098.43,0.00016986,2]
[323136756,1713705045595,-500.0,0.00016986,2]
[323136757,1713705045604,-1512.46,0.00016986,2]
[323136758,1713705045613,-668.7,0.00016986,2]
[323136759,1713705045622,-219.68,0.00016986,2]
[323136760,1713705045631,-500.0,0.00016986,2]
[323136761,1713705045641,-500.0,0.00016986,2]
[323136762,1713705045650,-598.66,0.00016986,2]
[323136764,1713705045659,-471.69,0.00016986,2]
[323136765,1713705045668,-182.0,0.00016986,2]
[323136766,1713705045677,-500.0,0.00016986,2]
[323136767,1713705045685,-281.07,0.00016986,2]
[323136768,1713705045694,-1411.47,0.00016986,2]
[323136769,1713705045703,-863.35,0.00016986,2]
[323136771,1713705045712,-900.52,0.00016986,2]
[323136772,1713705045721,-399.5,0.00016986,2]
[323136774,1713705045730,-1421.63,0.00016986,2]
[323136776,1713705045740,-500.0,0.00016986,2]
[323136777,1713705045749,-714.01,0.00016986,2]
[323136779,1713705045758,-540.27,0.00016986,2]
[323136780,1713705045767,-630.2,0.00016986,2]
[323136781,1713705045776,-360.84,0.00016986,2]
[323136782,1713705045785,-735.86,0.00016986,2]
[323136783,1713705045795,-500.0,0.00016986,2]
[323136784,1713705045804,-968.12,0.00016986,2]
[323136785,1713705045814,-534.4,0.00016986,2]
[323136787,1713705045823,-612.81,0.00016986,2]
[323136788,1713705045833,-500.0,0.00016986,2]
[323136789,1713705045843,-627.95,0.00016986,2]
[323136790,1713705045852,-500.0,0.00016986,2]
[323136791,1713705045862,-719.49,0.00016986,2]
[323136792,1713705045871,-500.0,0.00016986,2]
[323136793,1713705045882,-155.81,0.00016986,2]
[323136794,1713705045892,-797.25,0.00016986,2]
[323136795,1713705045901,-677.52,0.00016986,2]
[323136796,1713705045910,-546.7,0.00016986,2]
[323136797,1713705045920,-500.0,0.00016986,2]
[323136798,1713705045930,-500.0,0.00016986,2]
[323136799,1713705045939,-500.0,0.00016986,2]
[323136800,1713705045950,-719.49,0.00016986,2]
[323136801,1713705045960,-500.0,0.00016986,2]
[323136802,1713705045970,-803.51,0.00016986,2]
[323136803,1713705045981,-1118.71,0.00016986,2]
[323136804,1713705045992,-514.51,0.00016986,2]
[323136805,1713705046001,-505.43,0.00016986,2]
[323136806,1713705046010,-772.69,0.00016986,2]
[323136807,1713705046019,-963.51,0.00016986,2]
[323136808,1713705046029,-567.29,0.00016986,2]
[323136809,1713705046039,-500.0,0.00016986,2]
[323136810,1713705046049,-754.4,0.00016986,2]
[323136811,1713705046058,-500.0,0.00016986,2]
[323136812,1713705046067,-580.62,0.00016986,2]
[323136813,1713705046077,-966.87,0.00016986,2]
[323136814,1713705046087,-545.09,0.00016986,2]
[323136815,1713705046097,-517.61,0.00016986,2]
[323136816,1713705046106,-500.0,0.00016986,2]
[323136817,1713705046116,-686.65,0.00016986,2]
[323136818,1713705046125,-500.0,0.00016986,2]
[323136819,1713705046135,-500.0,0.00016986,2]
[323136820,1713705046144,-560.26,0.00016986,2]
[323136821,1713705046154,-650.83,0.00016986,2]
[323136822,1713705046164,-500.0,0.00016986,2]
[323136823,1713705046173,-603.02,0.00016986,2]
[323136824,1713705046182,-845.51,0.00016986,2]
[323136825,1713705046192,-500.0,0.00016986,2]
[323136826,1713705046201,-749.09,0.00016986,2]
[323136827,1713705046211,-500.0,0.00016986,2]
[323136828,1713705046224,-500.0,0.00016986,2]
[323136829,1713705046233,-767.95,0.00016986,2]
[323136830,1713705046243,-818.92,0.00016986,2]
[323136831,1713705046253,-500.0,0.00016986,2]
[323136832,1713705046262,-1003.55,0.00016986,2]
[323136833,1713705046271,-500.0,0.00016986,2]
[323136834,1713705046280,-628.37,0.00016986,2]
[323136835,1713705046290,-765.23,0.00016986,2]
[323136836,1713705046299,-547.07,0.00016986,2]
[323136837,1713705046309,-528.89,0.00016986,2]
[323136838,1713705046319,-150.0,0.00016986,2]
[323136839,1713705046328,-500.0,0.00016986,2]
[323136840,1713705046338,-536.94,0.00016986,2]
[323136841,1713705046494,-775.13,0.00016986,2]
[323136842,1713705046508,-570.14,0.00016986,2]
[323136843,1713705046517,-1045.49,0.00016986,2]
[323136844,1713705046527,-500.0,0.00016986,2]
[323136845,1713705046536,-1199.84,0.00016986,2]
[323136846,1713705046546,-780.93,0.00016986,2]
[323136847,1713705046557,-500.0,0.00016986,2]
[323136848,1713705046566,-693.71,0.00016986,2]
[323136849,1713705046577,-500.0,0.00016986,2]
[323136850,1713705046586,-896.94,0.00016986,2]